{"text_format":"1","workbook":"xlsx","n_sheets":10,"sheets":["раздел0","1,2","3","4,5,6","7","8,9","10,11","12,13","14,15","проверка"],"not_rendered":{"charts":0,"images":0,"macros":1,"external_links":0,"defined_names":114,"comments":0,"pivot_tables":0},"unopened":[],"bounds":{"document_bytes":16777216,"sheet_cells":100000,"rows_first":2000,"rows_last":500,"rows_between":2000,"halvings":0,"cell_chars":16384,"cell_head_chars":4096},"cells_cut":0,"cells_raw":0,"read":"whole","date_system":"1900"}

{"sheet":"раздел0","index":0,"n_rows":33,"n_cols":141,"rows_kept":33,"cut":false,"hidden":false,"merged":[[19,140,19,143],[2,17,2,136],[4,17,4,136],[6,13,6,140],[8,17,8,136],[10,27,10,126],[30,60,30,106],[30,107,30,154],[11,77,11,79],[14,0,14,83],[14,84,14,116],[14,125,14,148],[15,84,22,116],[15,119,18,154],[17,1,17,4],[19,126,19,128],[19,144,19,147],[20,144,20,147],[20,126,20,128],[20,129,20,139],[20,140,20,143],[19,129,19,139],[31,107,31,154],[22,125,23,148],[32,0,32,12],[32,13,32,59],[32,60,32,106],[32,107,32,154],[25,1,25,46],[25,47,25,152],[31,0,31,12],[31,13,31,59],[31,60,31,106],[27,1,27,17],[27,18,27,152],[29,0,30,12],[29,13,29,154],[30,13,30,59]]}
[]
[]
[null,null,null,null,null,null,null,null,null,null,null,null,null,null,null,null,null,"ФЕДЕРАЛЬНОЕ СТАТИСТИЧЕСКОЕ НАБЛЮДЕНИЕ"]
[]
[null,null,null,null,null,null,null,null,null,null,null,null,null,null,null,null,null,"КОНФИДЕНЦИАЛЬНОСТЬ ГАРАНТИРУЕТСЯ ПОЛУЧАТЕЛЕМ ИНФОРМАЦИИ"]
[]
[null,null,null,null,null,null,null,null,null,null,null,null,null,"Нарушение порядка предоставления первичных статистических данных или несвоевременное предоставление этих данных, либо предоставление недостоверных первичных статистических данных влечет ответственность, установленную Кодексом Российской Федерации об административных правонарушениях»"]
[]
[null,null,null,null,null,null,null,null,null,null,null,null,null,null,null,null,null,"ВОЗМОЖНО ПРЕДОСТАВЛЕНИЕ В ЭЛЕКТРОННОМ ВИДЕ"]
[]
[null,null,null,null,null,null,null,null,null,null,null,null,null,null,null,null,null,null,null,null,null,null,null,null,null,null,null,"СВЕДЕНИЯ О ДЕЯТЕЛЬНОСТИ ОРГАНИЗАЦИИ, ОСУЩЕСТВЛЯЮЩЕЙ ОБРАЗОВАТЕЛЬНУЮ\nДЕЯТЕЛЬНОСТЬ ПО ОБРАЗОВАТЕЛЬНЫМ ПРОГРАММАМ ДОШКОЛЬНОГО ОБРАЗОВАНИЯ,\nПРИСМОТР И УХОД ЗА ДЕТЬМИ"]
[null,null,null,null,null,null,null,null,null,null,null,null,null,null,null,null,null,null,null,null,null,null,null,null,null,null,null,null,null,null,null,null,null,null,null,null,null,null,null,null,null,null,null,null,null,null,null,null,null,null,null,null,null,null,null,null,null,null,null,null,null,null,null,null,null,null,null,null,null,null,null,null,null,null,null,null,"за 20",null,null,null," г."]
[]
[]
["Предоставляют:",null,null,null,null,null,null,null,null,null,null,null,null,null,null,null,null,null,null,null,null,null,null,null,null,null,null,null,null,null,null,null,null,null,null,null,null,null,null,null,null,null,null,null,null,null,null,null,null,null,null,null,null,null,null,null,null,null,null,null,null,null,null,null,null,null,null,null,null,null,null,null,null,null,null,null,null,null,null,null,null,null,null,null,"Сроки предоставления",null,null,null,null,null,null,null,null,null,null,null,null,null,null,null,null,null,null,null,null,null,null,null,null,null,null,null,null,null,null,null,null,null,null,null,null,null,null,null,null,"Форма № 85-К"]
[null,"юридические лица, осуществляющие образовательную деятельность по образовательным",null,null,null,null,null,null,null,null,null,null,null,null,null,null,null,null,null,null,null,null,null,null,null,null,null,null,null,null,null,null,null,null,null,null,null,null,null,null,null,null,null,null,null,null,null,null,null,null,null,null,null,null,null,null,null,null,null,null,null,null,null,null,null,null,null,null,null,null,null,null,null,null,null,null,null,null,null,null,null,null,null,null,"16 января\nпосле отчетного периода",null,null,null,null,null,null,null,null,null,null,null,null,null,null,null,null,null,null,null,null,null,null,null,null,null,null,null,null,null,null,null,null,null,null,"Приказ Росстата:\nОб утверждении формы\nот 30.07.2020 № 424\nО внесении изменений (при наличии)"]
[null,"программам дошкольного образования, присмотр и уход за детьми:"]
[null,"-",null,null,null,"территориальному органу Росстата в субъекте Российской Федерации "]
[null,null,null,null,null,"по установленному им адресу"]
[null,null,null,null,null,null,null,null,null,null,null,null,null,null,null,null,null,null,null,null,null,null,null,null,null,null,null,null,null,null,null,null,null,null,null,null,null,null,null,null,null,null,null,null,null,null,null,null,null,null,null,null,null,null,null,null,null,null,null,null,null,null,null,null,null,null,null,null,null,null,null,null,null,null,null,null,null,null,null,null,null,null,null,null,null,null,null,null,null,null,null,null,null,null,null,null,null,null,null,null,null,null,null,null,null,null,null,null,null,null,null,null,null,null,null,null,null,null,null,null,null,null,null,null,null,null,"от ",null,null,null,null,null,null,null,null,null,null,null,null,null,"№"]
[null,null,null,null,null,null,null,null,null,null,null,null,null,null,null,null,null,null,null,null,null,null,null,null,null,null,null,null,null,null,null,null,null,null,null,null,null,null,null,null,null,null,null,null,null,null,null,null,null,null,null,null,null,null,null,null,null,null,null,null,null,null,null,null,null,null,null,null,null,null,null,null,null,null,null,null,null,null,null,null,null,null,null,null,null,null,null,null,null,null,null,null,null,null,null,null,null,null,null,null,null,null,null,null,null,null,null,null,null,null,null,null,null,null,null,null,null,null,null,null,null,null,null,null,null,null,"от ",null,null,null,null,null,null,null,null,null,null,null,null,null,"№"]
[]
[null,null,null,null,null,null,null,null,null,null,null,null,null,null,null,null,null,null,null,null,null,null,null,null,null,null,null,null,null,null,null,null,null,null,null,null,null,null,null,null,null,null,null,null,null,null,null,null,null,null,null,null,null,null,null,null,null,null,null,null,null,null,null,null,null,null,null,null,null,null,null,null,null,null,null,null,null,null,null,null,null,null,null,null,null,null,null,null,null,null,null,null,null,null,null,null,null,null,null,null,null,null,null,null,null,null,null,null,null,null,null,null,null,null,null,null,null,null,null,null,null,null,null,null,null,"Годовая"]
[]
[]
[null,"Наименование отчитывающейся организации",null,null,null,null,null,null,null,null,null,null,null,null,null,null,null,null,null,null,null,null,null,null,null,null,null,null,null,null,null,null,null,null,null,null,null,null,null,null,null,null,null,null,null,null,null,"Поворинский"]
[]
[null,"Почтовый адрес"]
[]
["Код\nформы\nпо ОКУД",null,null,null,null,null,null,null,null,null,null,null,null,"Код"]
[null,null,null,null,null,null,null,null,null,null,null,null,null,"отчитывающейся организации по ОКПО \n(для территориально обособленного подразделения - идентификационный номер)"]
[1,null,null,null,null,null,null,null,null,null,null,null,null,2,null,null,null,null,null,null,null,null,null,null,null,null,null,null,null,null,null,null,null,null,null,null,null,null,null,null,null,null,null,null,null,null,null,null,null,null,null,null,null,null,null,null,null,null,null,null,3,null,null,null,null,null,null,null,null,null,null,null,null,null,null,null,null,null,null,null,null,null,null,null,null,null,null,null,null,null,null,null,null,null,null,null,null,null,null,null,null,null,null,null,null,null,null,4]
["0609506"]

{"sheet":"1,2","index":1,"n_rows":36,"n_cols":3,"rows_kept":36,"cut":false,"hidden":false,"merged":[[0,0,0,2],[2,0,2,2],[35,0,35,2],[16,0,16,2]]}
[]
[]
["Раздел 1. Организационная структура организации"]
[]
["Наименование показателя","N строки","Да - 1; Нет - 0"]
[1,2,3]
["Дошкольная образовательная организация",1,6]
["Обособленное подразделение (филиал) дошкольной образовательной организации",2,0]
["Обособленное подразделение (филиал) общеобразовательной организации",3,0]
["Обособленное подразделение (филиал) профессиональной образовательной организации и образовательной организации высшего образования",4,0]
["Подразделения (группы), осуществляющие образовательную деятельность по образовательным программам дошкольного образования, присмотр и уход за детьми, организованные при общеобразовательной организации",5,6]
["Подразделения (группы), осуществляющие образовательную деятельность по образовательным программам дошкольного образования, присмотр и уход за детьми, организованные при профессиональной образовательной организации и образовательной организации высшего образования",6,0]
["Подразделения (группы), осуществляющие образовательную деятельность по образовательным программам дошкольного образования, присмотр и уход за детьми, организованные при организации дополнительного образования детей",7,0]
["Подразделения (группы), осуществляющие образовательную деятельность по образовательным программам дошкольного образования, присмотр и уход за детьми, организованные при ином юридическом лице",8,0]
["Организация, осуществляющая присмотр и уход за детьми, без осуществления образовательной деятельности по программам дошкольного образования",9,0]
[]
["Раздел 2. Организация деятельности"]
[]
["Наименование показателя","N строки","Код (проставляет отчитывающаяся организация)"]
[1,2,3]
["Режим работы",10]
["Находится на капитальном ремонте",11]
["Деятельность приостановлена",12]
["Код типа поселения",13]
["Имеется ли в организации коллегиальный орган управления с участием общественности",14]
[]
["по строке 10 проставляется код режима работы"]
["пятидневный -  \"1\""]
["шестидневный - \"2\""]
["семидневный - \"3\""]
["по строке 11 организация на кап.ремонте указывает \"1\""]
["по строке 12 если деятельность приостановлена то нужно указать \"1\""]
["по строке 13 проставляется код типа поселения"]
["город и поселок городского типа - \"1\""]
["сельская местность - \"2\""]
["По строке 14 проставляется код \"1\" при наличии в дошкольной образовательной организации коллегиального органа управления с участием общественности (родители, работодатели), при его отсутствии проставляется код \"0\". \nСтрока 14 не заполняется общеобразовательными организациями, профессиональными образовательными организациями, организациями высшего образования, организациями дополнительного образования детей, иными юридическими лицами, осуществляющими деятельность по образовательным программам дошкольного образования, присмотр и уход за детьми, организациями, осуществляющими присмотр и уход за детьми, без осуществления образовательной деятельности по программам дошкольного образования."]

{"sheet":"3","index":2,"n_rows":36,"n_cols":13,"rows_kept":36,"cut":false,"hidden":false,"merged":[[5,8,6,8],[0,0,0,8],[2,0,2,8],[3,0,3,8],[4,0,6,0],[4,1,6,1],[4,2,4,5],[4,6,4,7],[5,2,6,2],[5,3,5,5],[5,6,6,6],[5,7,6,7]]}
["                Раздел 3. Распределение воспитанников по группам"]
[]
["                                               Коды по ОКЕИ: человек - 792;"]
["                                                 единица - 642, место - 698"]
["Наименование показателей","N строки","Численность воспитанников, человек",null,null,null,"Число групп, единиц",null,"Число мест"]
[null,null,"всего","из них:",null,null,"всего","в том числе для детей в возрасте 3 года и старше","всего"]
[null,null,null,"в группах для детей в возрасте 3 года и старше","с ограниченными возможностями здоровья","дети-инвалиды"]
[1,2,3,4,5,6,7,8,9]
["Всего (сумма строк 16, 25, 26, 29, 30, 31, 32)",15,989,837,32,5,46,34,1106]
["в том числе:",null,0,0,0,0,0,0,0]
["группы компенсирующей направленности",16,21,21,19,0,1,0,19]
["в том числе для воспитанников:",null,0,0,0,0,0,0,0]
["с нарушением слуха",17,0,0,0,0,0,0,0]
["с нарушением речи",18,19,19,19,0,1,0,19]
["с нарушением зрения",19,0,0,0,0,0,0,0]
["с нарушением интеллекта",20,0,0,0,0,0,0,0]
["с задержкой психического развития",21,0,0,0,0,0,0,0]
["с нарушением опорно-двигательного аппарата",22,0,0,0,0,0,0,0]
["со сложным дефектом",23,0,0,0,0,0,0,0]
["другого профиля",24,2,2,0,0,0,0,0]
["группы общеразвивающей направленности",25,940,788,1,5,44,33,1059]
["группы оздоровительной направленности",26,0,0,0,0,0,0,0]
["из них:",null,0,0,0,0,0,0,0]
["для детей с туберкулезной интоксикацией",27,0,0,0,0,0,0,0]
["для часто болеющих детей",28,0,0,0,0,0,0,0]
["группы комбинированной направленности",29,28,28,12,0,1,1,28,null,null,null,"!!"]
["группы для детей раннего возраста",30,0,"X",0,0,0,"X",0]
["группы по присмотру и уходу",31,0,0,0,0,0,0,0]
["семейные дошкольные группы",32,0,0,0,0,0,0,0]
["в том числе:",null,0,0,0,0,0,0,0]
["общеразвивающей направленности",33,0,0,0,0,0,0,0]
["по присмотру и уходу",34,0,0,0,0,0,0,0]
["Из общего числа (строки 15):",null,0,0,0,0,0,0,0]
["группы кратковременного пребывания",35,25,"X","X","X",2,"X","X"]
["группы круглосуточного пребывания",36,0,"X","X","X",0,"X","X"]
["разновозрастные группы",37,182,"X","X","X",22,"X","X"]

{"sheet":"4,5,6","index":3,"n_rows":33,"n_cols":11,"rows_kept":33,"cut":false,"hidden":false,"merged":[[22,0,22,3],[3,0,5,0],[3,1,5,1],[3,2,5,2],[3,3,3,10],[4,3,4,10],[0,0,0,10],[2,0,2,10],[12,0,12,3],[14,0,14,3],[20,0,20,3]]}
["Раздел 4. Распределение воспитанников по возрасту, человек"]
[]
["                                                 Код по ОКЕИ: человек - 792"]
["Наименование показателей","N строки","Всего, гр. 3 = сумме гр. 4 - 11","в том числе в возрасте, лет"]
[null,null,null,"(число полных лет на 01.01.20__ г.):"]
[null,null,null,0,1,2,3,4,5,6,"7 и старше"]
[1,2,3,4,5,6,7,8,9,10,11]
["Численность воспитанников - всего",38,989,0,14,113,164,224,225,230,19]
["из них - девочки",39,469,0,7,50,93,116,102,105,1]
["Из общей численности воспитанников (из стр. 38) - дети-инвалиды",40,5,0,0,0,1,1,2,1,0]
["из них - девочки",41,3,0,0,0,1,1,1,0,0]
[]
["Раздел 5. Организация летнего отдыха воспитанников, человек"]
[]
["Код по ОКЕИ: человек - 792"]
["Наименование показателей","N строки","Всего","из них воспитанники в возрасте 3 года и старше"]
[1,2,3,4]
["Численность воспитанников, охваченных летними оздоровительными мероприятиями",42,319,270]
["из них вывезены на дачи образовательной организацией",43,0,0]
[]
[" Раздел 6. Язык обучения и воспитания"]
[]
["Код по ОКЕИ: человек - 792"]
["Наименование показателей","N строки","Код языка по ОКИН","Численность воспитанников, человек"]
[1,2,3,4]
["Численность воспитанников - всего\n(сумма строк 44 - 50)",44,989,989]
["в том числе обучалось и воспитывалось на языках народов Российской Федерации",null,0,0]
["русский",45,989,989]
[null,46]
[null,47]
[null,48]
[null,49]
[null,50]

{"sheet":"7","index":4,"n_rows":23,"n_cols":9,"rows_kept":23,"cut":false,"hidden":false,"merged":[[0,0,0,8],[5,0,6,0],[5,1,6,1],[5,2,6,2],[5,3,5,6],[5,7,6,7],[5,8,6,8],[2,0,2,8],[3,0,3,8],[4,0,4,8]]}
[]
[]
["Раздел 7. Распределение педагогического персонала по уровню образования и полу, человек\n(без внешних совместителей и работавших по договорам гражданско-правового характера)"]
[]
["                                                 Код по ОКЕИ: человек - 792"]
["Наименование показателей","N строки","Всего работников","из них имеют образование:",null,null,null,"Из гр. 3 - женщины","Кроме того, численность внешних совместителей"]
[null,null,null,"высшее","из них педагогическое","среднее профессиональное образование по программам подготовки специалистов среднего звена","из них педагогическое"]
[1,2,3,4,5,6,7,8,9]
["Численность педагогических работников - всего \n(сумма строк 52 - 62)",51,87,65,61,22,19,85,9]
["в том числе:",null,0,0,0,0,0,0,0]
["воспитатели",52,63,45,43,18,16,62,1]
["старшие воспитатели",53,5,5,5,0,0,5,0]
["музыкальные руководители",54,5,2,2,3,3,5,6]
["инструкторы по физической культуре",55,4,4,3,0,0,3,0]
["учителя - логопеды",56,5,5,5,0,0,5,1]
["учителя - дефектологи",57,0,0,0,0,0,0,0]
["педагоги - психологи",58,3,3,3,0,0,3,1]
["социальные педагоги",59,0,0,0,0,0,0,0]
["педагоги - организаторы",60,0,0,0,0,0,0,0]
["педагоги дополнительного образования",61,2,1,1,1,0,2,0]
["другие педагогические работники",62,0,0,0,0,0,0,0]
["Из общей численности учителей-дефектологов (стр. 57) учителя, имеющие специальное дефектологическое образование:",63,0,"X","X","X","X",0,0]
["Численность педагогических работников (из строки 51), прошедших  в течении последних трех лет повышение квалификации и (или) профессиональную переподготовку",64,57,26,23,7,5,31,0]

{"sheet":"8,9","index":5,"n_rows":27,"n_cols":16,"rows_kept":27,"cut":false,"hidden":false,"merged":[[23,2,24,2],[23,3,23,8],[23,9,24,9],[22,0,22,15],[0,0,0,11],[1,0,1,11],[2,0,2,11],[20,0,20,15],[23,10,23,15],[3,0,4,0],[3,1,4,1],[3,2,3,11],[23,0,24,0],[23,1,24,1]]}
["Раздел 8. Распределение педагогического персонала по возрасту (без внешних совместителей и работавших по договорам гражданско-правового характера), человек"]
[]
["                                                 Код по ОКЕИ: человек - 792"]
["Наименование показателей","N строки","Число полных лет по состоянию на 1 января 20__ года"]
[null,null,"моложе 25 лет","25 - 29","30 - 34","35 - 39","40 - 44","45 - 49","50 - 54","55 - 59","60 - 64","65 и более"]
[1,2,3,4,5,6,7,8,9,10,11,12]
["Численность педагогических работников - всего\n(сумма строк 66 - 76)",65,7,8,15,13,12,14,9,6,1,2]
["в том числе:",null,0,0,0,0,0,0,0,0,0,0]
["воспитатели",66,7,6,8,11,10,11,6,3,0,1]
["старшие воспитатели",67,0,0,1,1,0,1,2,0,0,0]
["музыкальные руководители",68,0,1,0,0,0,0,1,2,0,1]
["инструкторы по физической культуре",69,0,1,3,0,0,0,0,0,0,0]
["учителя - логопеды",70,0,0,1,0,1,2,0,0,1,0]
["учителя-дефектологи",71,0,0,0,0,0,0,0,0,0,0]
["педагоги-психологи",72,0,0,3,0,0,0,0,0,0,0]
["социальные педагоги",73,0,0,0,0,0,0,0,0,0,0]
["педагоги-организаторы",74,0,0,0,0,0,0,0,0,0,0]
["педагоги дополнительного образования",75,0,0,0,0,1,0,0,1,0,0]
["другие педагогические работники",76,0,0,0,0,0,0,0,0,0,0]
[]
["     Раздел 9. Распределение педагогического персонала по стажу работы (без внешних совместителей и работавших по договорам гражданско-правового характера), человек"]
[]
["                                                 Код по ОКЕИ: человек - 792"]
["Наименование показателей","N строки","Всего работников (сумма гр. 4 - 9)","в том числе имеют общий стаж работы, лет:",null,null,null,null,null,"из общей численности работников (гр. 3) имеют педагогический стаж, всего (сумма гр 11 - 16)","в том числе имеют педагогический стаж работы, лет:"]
[null,null,null,"до 3","от 3 до 5","от 5 до 10","от 10 до 15","от 15 до 20","20 и более",null,"до 3","от 3 до 5","от 5 до 10","от 10 до 15","от 15 до 20","20 и более"]
[1,2,3,4,5,6,7,8,9,10,11,12,13,14,15,16]
["Численность педагогических работников, всего",77,87,9,8,14,14,11,31,86,13,7,20,14,10,22]

{"sheet":"10,11","index":6,"n_rows":27,"n_cols":8,"rows_kept":27,"cut":false,"hidden":false,"merged":[[18,0,18,2],[0,0,0,7],[2,0,2,7],[4,0,4,7],[16,0,16,7],[5,0,6,0],[5,1,6,1],[5,2,6,2],[5,3,5,6],[5,7,6,7]]}
[]
[]
["Раздел 10. Площадь помещений дошкольной образовательной организации, квадратный метр"]
[]
["                                       Коды по ОКЕИ: квадратный метр - 055"]
["Наименование показателей","N строки","Общая площадь зданий (помещений) (сумма гр. 4 - 7)","из нее площадь по форме владения, пользования:",null,null,null,"Из общей площади (гр. 3) - площадь, сданная в аренду (субаренду)"]
[null,null,null,"на правах собственности","в оперативном управлении","арендованная","другие формы владения"]
[1,2,3,4,5,6,7,8]
["Общая площадь зданий (помещений)",78,13892.599999999999,0,13892.599999999999,0,0,0]
["из нее:",null,0,0,0,0,0,0]
["площадь помещений, используемых непосредственно для нужд образовательной организации",79,12971.4,0,12971.4,0,0,0]
["из нее:",null,0,0,0,0,0,0]
["групповых ячеек (раздевальная, групповая, спальня, буфетная, туалетная)",80,3950.8,"X","X","X","X","X"]
["дополнительных помещений для занятий с детьми, предназначенных для поочередного использования всеми или несколькими детскими группами (музыкальный зал, физкультурный зал, бассейн, кабинет логопеда и др.)",81,634.40000000000009,"X","X","X","X","X"]
["Из строки 80 - площадь групповых ячеек для детей в возрасте 3 года и старше",82,2236.1999999999998,"X","X","X","X","X"]
[]
["Раздел 10 не заполняется общеобразовательными организациями, профессиональными образовательными организациями, организациями высшего образования, организациями дополнительного образования детей, иными юридическими лицами, в состав которых входят подразделения (группы), осуществляющие образовательную деятельность по образовательным программам дошкольного образования, присмотр и уход за детьми, организациями, осуществляющими присмотр и уход за детьми, без осуществления образовательной деятельности по программам дошкольного образования."]
[]
[" Раздел 11. Наличие помещений в дошкольной образовательной организации"]
[]
["Наименование показателей","N строки","Да - 1; Нет - 0"]
[1,2,3]
["Физкультурный зал",83,2]
["Музыкальный зал",84,4]
["Закрытый плавательный бассейн",85,0]
["Зимний сад",86,2]
["Изолятор",87,5]

{"sheet":"12,13","index":7,"n_rows":36,"n_cols":3,"rows_kept":36,"cut":false,"hidden":false,"merged":[[0,0,0,2],[2,0,2,2],[17,0,17,2],[19,0,19,2]]}
["Раздел 12. Техническое состояние зданий дошкольной образовательной организации"]
[]
["Код по ОКЕИ: единица - 642"]
["Наименование показателей","N строки","Всего"]
[1,2,3]
["Требует капитального ремонта (укажите соответствующий код: да - 1, нет - 0)",88,0]
["Находится в аварийном состоянии (укажите соответствующий код: да - 1, нет - 0)",89,0]
["Имеет (укажите соответствующий код: да - 1, нет - 0):",null,3]
["все виды благоустройства",90,6]
["центральное отопление",91,6]
["водоснабжение",92,6]
["канализацию",93,6]
["Число зданий организации - всего",94,12]
["из них:"]
["требуют капитального ремонта",95,0]
["находятся в аварийном состоянии",96,0]
[]
["Раздел 13. Электронные ресурсы дошкольной образовательной организации"]
[]
["Код по ОКЕИ: единица - 642"]
["Наименование показателей","N строки","Всего"]
[1,2,3]
["Число персональных компьютеров - всего",97,52]
["из них доступны для использования детьми",98,1]
["Число компьютеров, имеющих доступ к сети Интернет",99,41]
["Дошкольная образовательная организация имеет (укажите соответствующий код: да - 1, нет - 0):",null,1]
["адрес электронной почты",100,6]
["собственный сайт в сети Интернет",101,6]
["в том числе предоставляет на своем сайте нормативно закрепленный перечень сведений о своей деятельности",102,6]
[]
[]
[]
[]
[]
[]
["   "]

{"sheet":"14,15","index":8,"n_rows":37,"n_cols":4,"rows_kept":37,"cut":false,"hidden":false,"merged":[[0,0,0,2],[1,0,1,2],[20,0,20,2]]}
["Раздел 14. Затраты на внедрение и использование цифровых технологий в отчетном году"]
["(разделы 14-15 заполняет только дошкольная образовательная организация, являющаяся самостоятельным юридическим лицом)"]
[]
["Наименование показателя","№\nстроки","Всего, тыс. руб.\n(с одним десятичным знаком)"]
[1,2,3]
["Затраты на внедрение и использование цифровых технологий - всего (сумма строк 105, 114)",103,332.4]
["из них - затраты на продукты и услуги в области информационной безопасности",104,0]
["из строки 103 - Внутренние затраты на внедрение и использование цифровых технологий",105,332.4]
["из них - на приобретение машин и оборудования, связанных с цифровыми технологиями, а также техническое обслуживание, модернизацию, текущий и капитальный ремонт, выполненные собственными силами ",106,53.9]
["из них на приобретение:",null,0]
["вычислительной техники и оргтехники",107,53.9]
["коммуникационного оборудования",108,0]
["на приобретение программного обеспечения, адаптацию и доработку программного обеспечения, выполненные собственными силами",109,0]
["в том числе российского программного обеспечения",110,0]
["на оплату услуг электросвязи",111,278.5]
["в том числе на оплату доступа к Интернету",112,166.9]
["на приобретение цифрового контента\n(книги, музыкальные произведения, изображения, видео в электронном и т.п.)",113,0]
["Внешние затраты на внедрение и использование цифровых технологий ",114,0]
[]
[null,null,0]
["Раздел 15. Источники финансирования внутренних затрат на внедрение и использование цифровых технологий"]
["Наименование показателя","№\nстроки","Всего, тыс. руб.\n(с одним десятичным знаком)"]
["Внутренние затраты на внедрение и использование цифровых технологий (сумма строк 116, 117, 118)",115,332.4]
["в том числе по источникам финансирования:",null,0]
["собственные средства организации",116,0]
["средства бюджетов всех уровней",117,332.4]
["прочие привлеченные средства",118,0]
["из них:",null,0]
["некоммерческих организаций",119,0]
["физических лиц",120,0]
[]
[]
[]
["Должностное лицо, ответственное за предоставление первичных статистических данных (лицо, уполномоченное предоставлять первичные статистические  данные от имени    юридического лица) "]
["   ","(должность)","(ФИО)","(подпись)"]
[]
[null,"(номер контактного телефона)",null,"дата заполнения документа"]

{"sheet":"проверка","index":9,"n_rows":167,"n_cols":2,"rows_kept":167,"cut":false,"hidden":false,"merged":[[165,1,165,14],[156,1,156,14],[157,1,157,14],[158,1,158,14],[159,1,159,14],[160,1,160,14],[151,1,151,14],[152,1,152,14],[153,1,153,14],[154,1,154,14],[155,1,155,14],[0,1,0,4],[126,1,126,14],[127,1,127,14],[128,1,128,14],[129,1,129,14],[161,1,161,14],[162,1,162,14],[163,1,163,14],[164,1,164,14],[146,1,146,14],[147,1,147,14],[148,1,148,14],[149,1,149,14],[150,1,150,14],[130,1,130,14],[121,1,121,14],[122,1,122,14],[123,1,123,14],[124,1,124,14],[125,1,125,14],[144,1,144,14],[145,1,145,14],[136,1,136,14],[137,1,137,14],[138,1,138,14],[139,1,139,14],[140,1,140,14],[141,1,141,14],[142,1,142,14],[143,1,143,14],[131,1,131,14],[132,1,132,14],[133,1,133,14],[134,1,134,14],[135,1,135,14],[116,1,116,14],[117,1,117,14],[118,1,118,14],[119,1,119,14],[120,1,120,14],[111,1,111,14],[112,1,112,14],[113,1,113,14],[114,1,114,14],[115,1,115,14],[106,1,106,14],[107,1,107,14],[108,1,108,14],[109,1,109,14],[110,1,110,14],[101,1,101,14],[102,1,102,14],[103,1,103,14],[104,1,104,14],[105,1,105,14],[96,1,96,14],[97,1,97,14],[98,1,98,14],[99,1,99,14],[100,1,100,14],[91,1,91,14],[92,1,92,14],[93,1,93,14],[94,1,94,14],[95,1,95,14],[86,1,86,14],[87,1,87,14],[88,1,88,14],[89,1,89,14],[90,1,90,14],[81,1,81,14],[82,1,82,14],[83,1,83,14],[84,1,84,14],[85,1,85,14],[77,1,77,14],[78,1,78,14],[79,1,79,14],[80,1,80,14],[72,1,72,14],[73,1,73,14],[74,1,74,14],[75,1,75,14],[76,1,76,14],[67,1,67,14],[68,1,68,14],[69,1,69,14],[70,1,70,14],[71,1,71,14],[62,1,62,14],[63,1,63,14],[64,1,64,14],[65,1,65,14],[66,1,66,14],[57,1,57,14],[58,1,58,14],[59,1,59,14],[60,1,60,14],[61,1,61,14],[52,1,52,14],[53,1,53,14],[54,1,54,14],[55,1,55,14],[56,1,56,14],[47,1,47,14],[48,1,48,14],[49,1,49,14],[50,1,50,14],[51,1,51,14],[42,1,42,14],[43,1,43,14],[44,1,44,14],[45,1,45,14],[46,1,46,14],[37,1,37,14],[38,1,38,14],[39,1,39,14],[40,1,40,14],[41,1,41,14],[32,1,32,14],[33,1,33,14],[34,1,34,14],[35,1,35,14],[36,1,36,14],[27,1,27,14],[28,1,28,14],[29,1,29,14],[30,1,30,14],[31,1,31,14],[22,1,22,14],[23,1,23,14],[24,1,24,14],[25,1,25,14],[26,1,26,14],[17,1,17,14],[18,1,18,14],[19,1,19,14],[20,1,20,14],[21,1,21,14],[12,1,12,14],[13,1,13,14],[14,1,14,14],[15,1,15,14],[16,1,16,14],[7,1,7,14],[8,1,8,14],[9,1,9,14],[10,1,10,14],[11,1,11,14],[2,1,2,14],[3,1,3,14],[4,1,4,14],[5,1,5,14],[6,1,6,14]]}
[{"$f":"COUNTIF(A3:A431,\"ОШИБКА\")","v":5},"количество ошибок!!!!!!"]
[]
[{"$f":"IF(SUM('1,2'!C7:C15)>1,\"ОШИБКА\",\"ПРАВИЛЬНО\")","v":"ОШИБКА"},"в подразделе 1.1 должна быть заполнена только одна из строк 01-03 ( т.е. сумма строк 01-09=1)"]
[{"$f":"IF(SUM('1,2'!C8:C15)=0,\"ПРАВИЛЬНО\",(IF(AND(SUM('1,2'!C8:C15)=1,'10,11'!C9<1,SUM('10,11'!C23:C27)<1,SUM('12,13'!C6:C16)<1,SUM('12,13'!C23:C29)<1),\"ПРАВИЛЬНО\",\"ОШИБКА\")))","v":"ОШИБКА"},"если в подразделе 1.1 одна из строк 03-08=\"1\", то разделы 4.1,4.2,4.3,4.4 не заполняются"]
[{"$f":"IF(AND(SUM('1,2'!C8:C15)=1,'1,2'!C25=\"\"),\"ПРАВИЛЬНО\",IF(AND('1,2'!C7=1,(OR('1,2'!C25=1,'1,2'!C25=0))),\"ПРАВИЛЬНО\",\"ОШИБКА\"))","v":"ОШИБКА"},"Раздел 1.2 Строка 05 не заполняется общеобразовательными организациями, профессиональными образовательными организациями, организациями высшего образования, организациями дополнительного образования детей, иными юридическими лицами, осуществляющими деятельность по образовательным программам дошкольного образования, присмотр и уход за детьми, организациями, осуществляющими присмотр и уход за детьми, без осуществления образовательной деятельности по программам дошкольного образования."]
[{"$f":"IF(AND('1,2'!C15=1,'10,11'!C9<1,SUM('10,11'!C23:C27)<1,SUM('12,13'!C6:C16)<1,SUM('12,13'!C23:C29)<1,'4,5,6'!C18<1,'7'!C9:C9<1,SUM('8,9'!C7:L7)<1,SUM('8,9'!C27:P27)<1),\"ПРАВИЛЬНО\",IF(OR('1,2'!C15=0,'1,2'!C15=\"\"),\"ПРАВИЛЬНО\",\"ОШИБКА\"))","v":"ПРАВИЛЬНО"},"если в подразделе 1.1 строка 09=\"1\", то разделы 2.3,3.1,3.2,3.3,4.1,4.2,4.3,4.4 не заполняются"]
[{"$f":"IF(AND('1,2'!C22=1,'3'!C9=0,'3'!I9=0,'4,5,6'!C8=0,'4,5,6'!D26:D26=0,SUM('10,11'!C23:C27)=0,SUM('12,13'!C6:C16)=0,SUM('12,13'!C23:C29)=0),\"ПРАВИЛЬНО\",IF('1,2'!C22=0,\"ПРАВИЛЬНО\",\"ОШИБКА\"))","v":"ПРАВИЛЬНО"},"Если организация находится на кап.ремонте то разделы 2.1,2.2,2.4,4.2,4.3,4.4 не заполняются"]
[{"$f":"IF('3'!C9>='3'!D9,\"ПРАВИЛЬНО\",\"ОШИБКА\")","v":"ПРАВИЛЬНО"},"графа 3>= графы 4 по строке 01"]
[{"$f":"IF('3'!C11>='3'!D11,\"ПРАВИЛЬНО\",\"ОШИБКА\")","v":"ПРАВИЛЬНО"},"графа 3>= графы 4 по строке 02"]
[{"$f":"IF('3'!C13>='3'!D13,\"ПРАВИЛЬНО\",\"ОШИБКА\")","v":"ПРАВИЛЬНО"},"графа 3>= графы 4 по строке 03"]
[{"$f":"IF('3'!C14>='3'!D14,\"ПРАВИЛЬНО\",\"ОШИБКА\")","v":"ПРАВИЛЬНО"},"графа 3>= графы 4 по строке 04"]
[{"$f":"IF('3'!C15>='3'!D15,\"ПРАВИЛЬНО\",\"ОШИБКА\")","v":"ПРАВИЛЬНО"},"графа 3>= графы 4 по строке 05"]
[{"$f":"IF('3'!C16>='3'!D16,\"ПРАВИЛЬНО\",\"ОШИБКА\")","v":"ПРАВИЛЬНО"},"графа 3>= графы 4 по строке 06"]
[{"$f":"IF('3'!C17>='3'!D17,\"ПРАВИЛЬНО\",\"ОШИБКА\")","v":"ПРАВИЛЬНО"},"графа 3>= графы 4 по строке 07"]
[{"$f":"IF('3'!C18>='3'!D18,\"ПРАВИЛЬНО\",\"ОШИБКА\")","v":"ПРАВИЛЬНО"},"графа 3>= графы 4 по строке 08"]
[{"$f":"IF('3'!C19>='3'!D19,\"ПРАВИЛЬНО\",\"ОШИБКА\")","v":"ПРАВИЛЬНО"},"графа 3>= графы 4 по строке 09"]
[{"$f":"IF('3'!C20>='3'!D20,\"ПРАВИЛЬНО\",\"ОШИБКА\")","v":"ПРАВИЛЬНО"},"графа 3>= графы 4 по строке 10"]
[{"$f":"IF('3'!C21>='3'!D21,\"ПРАВИЛЬНО\",\"ОШИБКА\")","v":"ПРАВИЛЬНО"},"графа 3>= графы 4 по строке 11"]
[{"$f":"IF('3'!C22>='3'!D22,\"ПРАВИЛЬНО\",\"ОШИБКА\")","v":"ПРАВИЛЬНО"},"графа 3>= графы 4 по строке 12"]
[{"$f":"IF('3'!C24>='3'!D24,\"ПРАВИЛЬНО\",\"ОШИБКА\")","v":"ПРАВИЛЬНО"},"графа 3>= графы 4 по строке 13"]
[{"$f":"IF('3'!C25>='3'!D25,\"ПРАВИЛЬНО\",\"ОШИБКА\")","v":"ПРАВИЛЬНО"},"графа 3>= графы 4 по строке 14"]
[{"$f":"IF('3'!C26>='3'!D26,\"ПРАВИЛЬНО\",\"ОШИБКА\")","v":"ПРАВИЛЬНО"},"графа 3>= графы 4 по строке 15"]
[{"$f":"IF('3'!C28>='3'!D28,\"ПРАВИЛЬНО\",\"ОШИБКА\")","v":"ПРАВИЛЬНО"},"графа 3>= графы 4 по строке 17"]
[{"$f":"IF('3'!C29>='3'!D29,\"ПРАВИЛЬНО\",\"ОШИБКА\")","v":"ПРАВИЛЬНО"},"графа 3>= графы 4 по строке 18"]
[{"$f":"IF('3'!C31>='3'!D31,\"ПРАВИЛЬНО\",\"ОШИБКА\")","v":"ПРАВИЛЬНО"},"графа 3>= графы 4 по строке 19"]
[{"$f":"IF('3'!C32>='3'!D32,\"ПРАВИЛЬНО\",\"ОШИБКА\")","v":"ПРАВИЛЬНО"},"графа 3>= графы 4 по строке 20"]
[{"$f":"IF('3'!C9>='3'!E9,\"ПРАВИЛЬНО\",\"ОШИБКА\")","v":"ПРАВИЛЬНО"},"графа 3>= графы 5 по строке 01"]
[{"$f":"IF('3'!C11>='3'!E11,\"ПРАВИЛЬНО\",\"ОШИБКА\")","v":"ПРАВИЛЬНО"},"графа 3>= графы 5 по строке 02"]
[{"$f":"IF('3'!C13>='3'!E13,\"ПРАВИЛЬНО\",\"ОШИБКА\")","v":"ПРАВИЛЬНО"},"графа 3>= графы 5 по строке 03"]
[{"$f":"IF('3'!C14>='3'!E14,\"ПРАВИЛЬНО\",\"ОШИБКА\")","v":"ПРАВИЛЬНО"},"графа 3>= графы 5 по строке 04"]
[{"$f":"IF('3'!C15>='3'!E15,\"ПРАВИЛЬНО\",\"ОШИБКА\")","v":"ПРАВИЛЬНО"},"графа 3>= графы 5 по строке 05"]
[{"$f":"IF('3'!C16>='3'!E16,\"ПРАВИЛЬНО\",\"ОШИБКА\")","v":"ПРАВИЛЬНО"},"графа 3>= графы 5 по строке 06"]
[{"$f":"IF('3'!C17>='3'!E17,\"ПРАВИЛЬНО\",\"ОШИБКА\")","v":"ПРАВИЛЬНО"},"графа 3>= графы 5 по строке 07"]
[{"$f":"IF('3'!C18>='3'!E18,\"ПРАВИЛЬНО\",\"ОШИБКА\")","v":"ПРАВИЛЬНО"},"графа 3>= графы 5 по строке 08"]
[{"$f":"IF('3'!C19>='3'!E19,\"ПРАВИЛЬНО\",\"ОШИБКА\")","v":"ПРАВИЛЬНО"},"графа 3>= графы 5 по строке 09"]
[{"$f":"IF('3'!C20>='3'!E20,\"ПРАВИЛЬНО\",\"ОШИБКА\")","v":"ПРАВИЛЬНО"},"графа 3>= графы 5 по строке 10"]
[{"$f":"IF('3'!C21>='3'!E21,\"ПРАВИЛЬНО\",\"ОШИБКА\")","v":"ПРАВИЛЬНО"},"графа 3>= графы 5 по строке 11"]
[{"$f":"IF('3'!C22>='3'!E22,\"ПРАВИЛЬНО\",\"ОШИБКА\")","v":"ПРАВИЛЬНО"},"графа 3>= графы 5 по строке 12"]
[{"$f":"IF('3'!C24>='3'!E24,\"ПРАВИЛЬНО\",\"ОШИБКА\")","v":"ПРАВИЛЬНО"},"графа 3>= графы 5 по строке 13"]
[{"$f":"IF('3'!C25>='3'!E25,\"ПРАВИЛЬНО\",\"ОШИБКА\")","v":"ПРАВИЛЬНО"},"графа 3>= графы 5 по строке 14"]
[{"$f":"IF('3'!C26>='3'!E26,\"ПРАВИЛЬНО\",\"ОШИБКА\")","v":"ПРАВИЛЬНО"},"графа 3>= графы 5 по строке 15"]
[{"$f":"IF('3'!C27>='3'!E27,\"ПРАВИЛЬНО\",\"ОШИБКА\")","v":"ПРАВИЛЬНО"},"графа 3>= графы 5 по строке 16"]
[{"$f":"IF('3'!C28>='3'!E28,\"ПРАВИЛЬНО\",\"ОШИБКА\")","v":"ПРАВИЛЬНО"},"графа 3>= графы 5 по строке 17"]
[{"$f":"IF('3'!C29>='3'!E29,\"ПРАВИЛЬНО\",\"ОШИБКА\")","v":"ПРАВИЛЬНО"},"графа 3>= графы 5 по строке 18"]
[{"$f":"IF('3'!C31>='3'!E31,\"ПРАВИЛЬНО\",\"ОШИБКА\")","v":"ПРАВИЛЬНО"},"графа 3>= графы 5 по строке 19"]
[{"$f":"IF('3'!C32>='3'!E32,\"ПРАВИЛЬНО\",\"ОШИБКА\")","v":"ПРАВИЛЬНО"},"графа 3>= графы 5 по строке 20"]
[{"$f":"IF('3'!C9>='3'!F9,\"ПРАВИЛЬНО\",\"ОШИБКА\")","v":"ПРАВИЛЬНО"},"графа 3>= графы 6 по строке 01"]
[{"$f":"IF('3'!C11>='3'!F11,\"ПРАВИЛЬНО\",\"ОШИБКА\")","v":"ПРАВИЛЬНО"},"графа 3>= графы 6 по строке 02"]
[{"$f":"IF('3'!C13>='3'!F13,\"ПРАВИЛЬНО\",\"ОШИБКА\")","v":"ПРАВИЛЬНО"},"графа 3>= графы 6 по строке 03"]
[{"$f":"IF('3'!C14>='3'!F14,\"ПРАВИЛЬНО\",\"ОШИБКА\")","v":"ПРАВИЛЬНО"},"графа 3>= графы 6 по строке 04"]
[{"$f":"IF('3'!C15>='3'!F15,\"ПРАВИЛЬНО\",\"ОШИБКА\")","v":"ПРАВИЛЬНО"},"графа 3>= графы 6 по строке 05"]
[{"$f":"IF('3'!C16>='3'!F16,\"ПРАВИЛЬНО\",\"ОШИБКА\")","v":"ПРАВИЛЬНО"},"графа 3>= графы 6 по строке 06"]
[{"$f":"IF('3'!C17>='3'!F17,\"ПРАВИЛЬНО\",\"ОШИБКА\")","v":"ПРАВИЛЬНО"},"графа 3>= графы 6 по строке 07"]
[{"$f":"IF('3'!C18>='3'!F18,\"ПРАВИЛЬНО\",\"ОШИБКА\")","v":"ПРАВИЛЬНО"},"графа 3>= графы 6 по строке 08"]
[{"$f":"IF('3'!C19>='3'!F19,\"ПРАВИЛЬНО\",\"ОШИБКА\")","v":"ПРАВИЛЬНО"},"графа 3>= графы 6 по строке 09"]
[{"$f":"IF('3'!C20>='3'!F20,\"ПРАВИЛЬНО\",\"ОШИБКА\")","v":"ПРАВИЛЬНО"},"графа 3>= графы 6 по строке 10"]
[{"$f":"IF('3'!C21>='3'!F21,\"ПРАВИЛЬНО\",\"ОШИБКА\")","v":"ПРАВИЛЬНО"},"графа 3>= графы 6 по строке 11"]
[{"$f":"IF('3'!C22>='3'!F22,\"ПРАВИЛЬНО\",\"ОШИБКА\")","v":"ПРАВИЛЬНО"},"графа 3>= графы 6 по строке 12"]
[{"$f":"IF('3'!C24>='3'!F24,\"ПРАВИЛЬНО\",\"ОШИБКА\")","v":"ПРАВИЛЬНО"},"графа 3>= графы 6 по строке 13"]
[{"$f":"IF('3'!C25>='3'!F25,\"ПРАВИЛЬНО\",\"ОШИБКА\")","v":"ПРАВИЛЬНО"},"графа 3>= графы 6 по строке 14"]
[{"$f":"IF('3'!C26>='3'!F26,\"ПРАВИЛЬНО\",\"ОШИБКА\")","v":"ПРАВИЛЬНО"},"графа 3>= графы 6 по строке 15"]
[{"$f":"IF('3'!C27>='3'!F27,\"ПРАВИЛЬНО\",\"ОШИБКА\")","v":"ПРАВИЛЬНО"},"графа 3>= графы 6 по строке 16"]
[{"$f":"IF('3'!C28>='3'!F28,\"ПРАВИЛЬНО\",\"ОШИБКА\")","v":"ПРАВИЛЬНО"},"графа 3>= графы 6 по строке 17"]
[{"$f":"IF('3'!C29>='3'!F29,\"ПРАВИЛЬНО\",\"ОШИБКА\")","v":"ПРАВИЛЬНО"},"графа 3>= графы 6 по строке 18"]
[{"$f":"IF('3'!C31>='3'!F31,\"ПРАВИЛЬНО\",\"ОШИБКА\")","v":"ПРАВИЛЬНО"},"графа 3>= графы 6 по строке 19"]
[{"$f":"IF('3'!C32>='3'!F32,\"ПРАВИЛЬНО\",\"ОШИБКА\")","v":"ПРАВИЛЬНО"},"графа 3>= графы 6 по строке 20"]
[{"$f":"IF('3'!G9>='3'!H9,\"ПРАВИЛЬНО\",\"ОШИБКА\")","v":"ПРАВИЛЬНО"},"графа 7>= графы 8 по строке 01"]
[{"$f":"IF('3'!G11>='3'!H11,\"ПРАВИЛЬНО\",\"ОШИБКА\")","v":"ПРАВИЛЬНО"},"графа 7>= графы 8 по строке 02"]
[{"$f":"IF('3'!G13>='3'!H13,\"ПРАВИЛЬНО\",\"ОШИБКА\")","v":"ПРАВИЛЬНО"},"графа 7>= графы 8 по строке 03"]
[{"$f":"IF('3'!G14>='3'!H14,\"ПРАВИЛЬНО\",\"ОШИБКА\")","v":"ПРАВИЛЬНО"},"графа 7>= графы 8 по строке 04"]
[{"$f":"IF('3'!G15>='3'!H15,\"ПРАВИЛЬНО\",\"ОШИБКА\")","v":"ПРАВИЛЬНО"},"графа 7>= графы 8 по строке 05"]
[{"$f":"IF('3'!G16>='3'!H16,\"ПРАВИЛЬНО\",\"ОШИБКА\")","v":"ПРАВИЛЬНО"},"графа 7>= графы 8 по строке 06"]
[{"$f":"IF('3'!G17>='3'!H17,\"ПРАВИЛЬНО\",\"ОШИБКА\")","v":"ПРАВИЛЬНО"},"графа 7>= графы 8 по строке 07"]
[{"$f":"IF('3'!G18>='3'!H18,\"ПРАВИЛЬНО\",\"ОШИБКА\")","v":"ПРАВИЛЬНО"},"графа 7>= графы 8 по строке 08"]
[{"$f":"IF('3'!G19>='3'!H19,\"ПРАВИЛЬНО\",\"ОШИБКА\")","v":"ПРАВИЛЬНО"},"графа 7>= графы 8 по строке 09"]
[{"$f":"IF('3'!G20>='3'!H20,\"ПРАВИЛЬНО\",\"ОШИБКА\")","v":"ПРАВИЛЬНО"},"графа 7>= графы 8 по строке 10"]
[{"$f":"IF('3'!G21>='3'!H21,\"ПРАВИЛЬНО\",\"ОШИБКА\")","v":"ПРАВИЛЬНО"},"графа 7>= графы 8 по строке 11"]
[{"$f":"IF('3'!G22>='3'!H22,\"ПРАВИЛЬНО\",\"ОШИБКА\")","v":"ПРАВИЛЬНО"},"графа 7>= графы 8 по строке 12"]
[{"$f":"IF('3'!G24>='3'!H24,\"ПРАВИЛЬНО\",\"ОШИБКА\")","v":"ПРАВИЛЬНО"},"графа 7>= графы 8 по строке 13"]
[{"$f":"IF('3'!G25>='3'!H25,\"ПРАВИЛЬНО\",\"ОШИБКА\")","v":"ПРАВИЛЬНО"},"графа 7>= графы 8 по строке 14"]
[{"$f":"IF('3'!G26>='3'!H26,\"ПРАВИЛЬНО\",\"ОШИБКА\")","v":"ПРАВИЛЬНО"},"графа 7>= графы 8 по строке 15"]
[{"$f":"IF('3'!G28>='3'!H28,\"ПРАВИЛЬНО\",\"ОШИБКА\")","v":"ПРАВИЛЬНО"},"графа 7>= графы 8 по строке 17"]
[{"$f":"IF('3'!G29>='3'!H29,\"ПРАВИЛЬНО\",\"ОШИБКА\")","v":"ПРАВИЛЬНО"},"графа 7>= графы 8 по строке 18"]
[{"$f":"IF('3'!G31>='3'!H31,\"ПРАВИЛЬНО\",\"ОШИБКА\")","v":"ПРАВИЛЬНО"},"графа 7>= графы 8 по строке 19"]
[{"$f":"IF('3'!G32>='3'!H32,\"ПРАВИЛЬНО\",\"ОШИБКА\")","v":"ПРАВИЛЬНО"},"графа 7>= графы 8 по строке 20"]
[{"$f":"IF('3'!C34<='3'!C9,\"ПРАВИЛЬНО\",\"ОШИБКА\")","v":"ПРАВИЛЬНО"},"строка 21 графа 3 <= строка 01 гр.3"]
[{"$f":"IF('3'!G34<='3'!G9,\"ПРАВИЛЬНО\",\"ОШИБКА\")","v":"ПРАВИЛЬНО"},"строка 21 графа 7 <= строка 01 гр.7"]
[{"$f":"IF('3'!C35<='3'!C9,\"ПРАВИЛЬНО\",\"ОШИБКА\")","v":"ПРАВИЛЬНО"},"строка 22 графа 3 <= строка 01 гр.3"]
[{"$f":"IF('3'!G35<='3'!G9,\"ПРАВИЛЬНО\",\"ОШИБКА\")","v":"ПРАВИЛЬНО"},"строка 22 графа 7 <= строка 01 гр.7"]
[{"$f":"IF('3'!G36<='3'!G9,\"ПРАВИЛЬНО\",\"ОШИБКА\")","v":"ПРАВИЛЬНО"},"строка 23 графа 3 <= строка 01 гр.3"]
[{"$f":"IF('3'!G36<='3'!G9,\"ПРАВИЛЬНО\",\"ОШИБКА\")","v":"ПРАВИЛЬНО"},"строка 22 графа 7 <= строка 01 гр.7"]
[{"$f":"IF('3'!C9='4,5,6'!C8,\"ПРАВИЛЬНО\",\"ОШИБКА\")","v":"ПРАВИЛЬНО"},"строка 01 гр.3 = стр. 01 гр.3 подраздела 2.2"]
[{"$f":"IF('3'!C9='4,5,6'!D26,\"ПРАВИЛЬНО\",\"ОШИБКА\")","v":"ПРАВИЛЬНО"},"строка 01 гр.3 = стр. 01 гр.4 подраздела 2.4"]
[{"$f":"IF('3'!F9='4,5,6'!C10,\"ПРАВИЛЬНО\",\"ОШИБКА\")","v":"ПРАВИЛЬНО"},"строка 03 гр.3 подраздела 2.2= стр.01 гр.6 подраздела 2.1"]
[{"$f":"IF('4,5,6'!C9<='4,5,6'!C8,\"ПРАВИЛЬНО\",\"ОШИБКА\")","v":"ПРАВИЛЬНО"},"строка 02 гр 3 подраздела 2.2 <= строки 01 графы 03 подраздела 2.2"]
[{"$f":"IF('7'!E9<='7'!D9,\"ПРАВИЛЬНО\",\"ОШИБКА\")","v":"ПРАВИЛЬНО"},"подраздел 3.1. графа 04>= графе 05 по строке 01 "]
[{"$f":"IF('7'!E11<='7'!D11,\"ПРАВИЛЬНО\",\"ОШИБКА\")","v":"ПРАВИЛЬНО"},"подраздел 3.1. графа 04>= графе 05 по строке 02"]
[{"$f":"IF('7'!E12<='7'!D12,\"ПРАВИЛЬНО\",\"ОШИБКА\")","v":"ПРАВИЛЬНО"},"подраздел 3.1. графа 04>= графе 05 по строке 03"]
[{"$f":"IF('7'!E13<='7'!D13,\"ПРАВИЛЬНО\",\"ОШИБКА\")","v":"ПРАВИЛЬНО"},"подраздел 3.1. графа 04>= графе 05 по строке 04"]
[{"$f":"IF('7'!E14<='7'!D14,\"ПРАВИЛЬНО\",\"ОШИБКА\")","v":"ПРАВИЛЬНО"},"подраздел 3.1. графа 04>= графе 05 по строке 05"]
[{"$f":"IF('7'!E15<='7'!D15,\"ПРАВИЛЬНО\",\"ОШИБКА\")","v":"ПРАВИЛЬНО"},"подраздел 3.1. графа 04>= графе 05 по строке 06"]
[{"$f":"IF('7'!E16<='7'!D16,\"ПРАВИЛЬНО\",\"ОШИБКА\")","v":"ПРАВИЛЬНО"},"подраздел 3.1. графа 04>= графе 05 по строке 07"]
[{"$f":"IF('7'!E17<='7'!D17,\"ПРАВИЛЬНО\",\"ОШИБКА\")","v":"ПРАВИЛЬНО"},"подраздел 3.1. графа 04>= графе 05 по строке 08"]
[{"$f":"IF('7'!E18<='7'!D18,\"ПРАВИЛЬНО\",\"ОШИБКА\")","v":"ПРАВИЛЬНО"},"подраздел 3.1. графа 04>= графе 05 по строке 09"]
[{"$f":"IF('7'!E19<='7'!D19,\"ПРАВИЛЬНО\",\"ОШИБКА\")","v":"ПРАВИЛЬНО"},"подраздел 3.1. графа 04>= графе 05 по строке 10"]
[{"$f":"IF('7'!E20<='7'!D20,\"ПРАВИЛЬНО\",\"ОШИБКА\")","v":"ПРАВИЛЬНО"},"подраздел 3.1. графа 04>= графе 05 по строке 11"]
[{"$f":"IF('7'!E21<='7'!D21,\"ПРАВИЛЬНО\",\"ОШИБКА\")","v":"ПРАВИЛЬНО"},"подраздел 3.1. графа 04>= графе 05 по строке 12"]
[{"$f":"IF('7'!G9<='7'!F9,\"ПРАВИЛЬНО\",\"ОШИБКА\")","v":"ПРАВИЛЬНО"},"подраздел 3.1. графа 06>= графе 07 по строке 01"]
[{"$f":"IF('7'!G11<='7'!F11,\"ПРАВИЛЬНО\",\"ОШИБКА\")","v":"ПРАВИЛЬНО"},"подраздел 3.1. графа 06>= графе 07 по строке 02"]
[{"$f":"IF('7'!G12<='7'!F12,\"ПРАВИЛЬНО\",\"ОШИБКА\")","v":"ПРАВИЛЬНО"},"подраздел 3.1. графа 06>= графе 07 по строке 03"]
[{"$f":"IF('7'!G13<='7'!F13,\"ПРАВИЛЬНО\",\"ОШИБКА\")","v":"ПРАВИЛЬНО"},"подраздел 3.1. графа 06>= графе 07 по строке 04"]
[{"$f":"IF('7'!G14<='7'!F14,\"ПРАВИЛЬНО\",\"ОШИБКА\")","v":"ПРАВИЛЬНО"},"подраздел 3.1. графа 06>= графе 07 по строке 05"]
[{"$f":"IF('7'!G15<='7'!F15,\"ПРАВИЛЬНО\",\"ОШИБКА\")","v":"ПРАВИЛЬНО"},"подраздел 3.1. графа 06>= графе 07 по строке 06"]
[{"$f":"IF('7'!G16<='7'!F16,\"ПРАВИЛЬНО\",\"ОШИБКА\")","v":"ПРАВИЛЬНО"},"подраздел 3.1. графа 06>= графе 07 по строке 07"]
[{"$f":"IF('7'!G17<='7'!F17,\"ПРАВИЛЬНО\",\"ОШИБКА\")","v":"ПРАВИЛЬНО"},"подраздел 3.1. графа 06>= графе 07 по строке 08"]
[{"$f":"IF('7'!G18<='7'!F18,\"ПРАВИЛЬНО\",\"ОШИБКА\")","v":"ПРАВИЛЬНО"},"подраздел 3.1. графа 06>= графе 07 по строке 09"]
[{"$f":"IF('7'!G19<='7'!F19,\"ПРАВИЛЬНО\",\"ОШИБКА\")","v":"ПРАВИЛЬНО"},"подраздел 3.1. графа 06>= графе 07 по строке 10"]
[{"$f":"IF('7'!G20<='7'!F20,\"ПРАВИЛЬНО\",\"ОШИБКА\")","v":"ПРАВИЛЬНО"},"подраздел 3.1. графа 06>= графе 07 по строке 11"]
[{"$f":"IF('7'!G21<='7'!F21,\"ПРАВИЛЬНО\",\"ОШИБКА\")","v":"ПРАВИЛЬНО"},"подраздел 3.1. графа 06>= графе 07 по строке 12"]
[{"$f":"IF('7'!H9<='7'!C9,\"ПРАВИЛЬНО\",\"ОШИБКА\")","v":"ПРАВИЛЬНО"},"подраздел 3.1. графа 03>= графе 08 по строке 01"]
[{"$f":"IF('7'!H11<='7'!C11,\"ПРАВИЛЬНО\",\"ОШИБКА\")","v":"ПРАВИЛЬНО"},"подраздел 3.1. графа 03>= графе 08 по строке 02"]
[{"$f":"IF('7'!H12<='7'!C12,\"ПРАВИЛЬНО\",\"ОШИБКА\")","v":"ПРАВИЛЬНО"},"подраздел 3.1. графа 03>= графе 08 по строке 03"]
[{"$f":"IF('7'!H13<='7'!C13,\"ПРАВИЛЬНО\",\"ОШИБКА\")","v":"ПРАВИЛЬНО"},"подраздел 3.1. графа 03>= графе 08 по строке 04"]
[{"$f":"IF('7'!H14<='7'!C14,\"ПРАВИЛЬНО\",\"ОШИБКА\")","v":"ПРАВИЛЬНО"},"подраздел 3.1. графа 03>= графе 08 по строке 05"]
[{"$f":"IF('7'!H15<='7'!C15,\"ПРАВИЛЬНО\",\"ОШИБКА\")","v":"ПРАВИЛЬНО"},"подраздел 3.1. графа 03>= графе 08 по строке 06"]
[{"$f":"IF('7'!H16<='7'!C16,\"ПРАВИЛЬНО\",\"ОШИБКА\")","v":"ПРАВИЛЬНО"},"подраздел 3.1. графа 03>= графе 08 по строке 07"]
[{"$f":"IF('7'!H17<='7'!C17,\"ПРАВИЛЬНО\",\"ОШИБКА\")","v":"ПРАВИЛЬНО"},"подраздел 3.1. графа 03>= графе 08 по строке 08"]
[{"$f":"IF('7'!H18<='7'!C18,\"ПРАВИЛЬНО\",\"ОШИБКА\")","v":"ПРАВИЛЬНО"},"подраздел 3.1. графа 03>= графе 08 по строке 09"]
[{"$f":"IF('7'!H19<='7'!C19,\"ПРАВИЛЬНО\",\"ОШИБКА\")","v":"ПРАВИЛЬНО"},"подраздел 3.1. графа 03>= графе 08 по строке 10"]
[{"$f":"IF('7'!H20<='7'!C20,\"ПРАВИЛЬНО\",\"ОШИБКА\")","v":"ПРАВИЛЬНО"},"подраздел 3.1. графа 03>= графе 08 по строке 11"]
[{"$f":"IF('7'!H21<='7'!C21,\"ПРАВИЛЬНО\",\"ОШИБКА\")","v":"ПРАВИЛЬНО"},"подраздел 3.1. графа 03>= графе 08 по строке 12"]
[{"$f":"IF('7'!C22<='7'!C16,\"ПРАВИЛЬНО\",\"ОШИБКА\")","v":"ПРАВИЛЬНО"},"подраздел 3.1 строка 13 <= строке 07 "]
[{"$f":"IF('7'!C9=SUM('8,9'!C7:L7),\"ПРАВИЛЬНО\",\"ОШИБКА\")","v":"ПРАВИЛЬНО"},"подраздел 3.2 сумма гр.3-12 = гр. 3 подраздела 3.1 по строке 01"]
[{"$f":"IF('7'!C11=SUM('8,9'!C9:L9),\"ПРАВИЛЬНО\",\"ОШИБКА\")","v":"ПРАВИЛЬНО"},"подраздел 3.2 сумма гр.3-12 = гр. 3 подраздела 3.1 по строке 02"]
[{"$f":"IF('7'!C12=SUM('8,9'!C10:L10),\"ПРАВИЛЬНО\",\"ОШИБКА\")","v":"ПРАВИЛЬНО"},"подраздел 3.2 сумма гр.3-12 = гр. 3 подраздела 3.1 по строке 03"]
[{"$f":"IF('7'!C13=SUM('8,9'!C11:L11),\"ПРАВИЛЬНО\",\"ОШИБКА\")","v":"ПРАВИЛЬНО"},"подраздел 3.2 сумма гр.3-12 = гр. 3 подраздела 3.1 по строке 04"]
[{"$f":"IF('7'!C14=SUM('8,9'!C12:L12),\"ПРАВИЛЬНО\",\"ОШИБКА\")","v":"ПРАВИЛЬНО"},"подраздел 3.2 сумма гр.3-12 = гр. 3 подраздела 3.1 по строке 05"]
[{"$f":"IF('7'!C15=SUM('8,9'!C13:L13),\"ПРАВИЛЬНО\",\"ОШИБКА\")","v":"ПРАВИЛЬНО"},"подраздел 3.2 сумма гр.3-12 = гр. 3 подраздела 3.1 по строке 06"]
[{"$f":"IF('7'!C16=SUM('8,9'!C14:L14),\"ПРАВИЛЬНО\",\"ОШИБКА\")","v":"ПРАВИЛЬНО"},"подраздел 3.2 сумма гр.3-12 = гр. 3 подраздела 3.1 по строке 07"]
[{"$f":"IF('7'!C17=SUM('8,9'!C15:L15),\"ПРАВИЛЬНО\",\"ОШИБКА\")","v":"ПРАВИЛЬНО"},"подраздел 3.2 сумма гр.3-12 = гр. 3 подраздела 3.1 по строке 08"]
[{"$f":"IF('7'!C18=SUM('8,9'!C16:L16),\"ПРАВИЛЬНО\",\"ОШИБКА\")","v":"ПРАВИЛЬНО"},"подраздел 3.2 сумма гр.3-12 = гр. 3 подраздела 3.1 по строке 09"]
[{"$f":"IF('7'!C19=SUM('8,9'!C17:L17),\"ПРАВИЛЬНО\",\"ОШИБКА\")","v":"ПРАВИЛЬНО"},"подраздел 3.2 сумма гр.3-12 = гр. 3 подраздела 3.1 по строке 10"]
[{"$f":"IF('7'!C20=SUM('8,9'!C18:L18),\"ПРАВИЛЬНО\",\"ОШИБКА\")","v":"ПРАВИЛЬНО"},"подраздел 3.2 сумма гр.3-12 = гр. 3 подраздела 3.1 по строке 11"]
[{"$f":"IF('7'!C21=SUM('8,9'!C19:L19),\"ПРАВИЛЬНО\",\"ОШИБКА\")","v":"ПРАВИЛЬНО"},"подраздел 3.2 сумма гр.3-12 = гр. 3 подраздела 3.1 по строке 12"]
[{"$f":"IF('8,9'!C27>='8,9'!J27,\"ПРАВИЛЬНО\",\"ОШИБКА\")","v":"ПРАВИЛЬНО"},"подраздел 3.3 гр.3 >= подраздел 3.3 гр.10"]
[{"$f":"IF('8,9'!C27='7'!C9,\"ПРАВИЛЬНО\",\"ОШИБКА\")","v":"ПРАВИЛЬНО"},"подраздел 3.3 гр.3= подразделу 3.1 графа 03 строка 01"]
[{"$f":"IF('10,11'!C9>='10,11'!H9,\"ПРАВИЛЬНО\",\"ОШИБКА\")","v":"ПРАВИЛЬНО"},"подраздел 4.1 гр.3>= гр.8 по строке 01"]
[{"$f":"IF('10,11'!C11>='10,11'!H11,\"ПРАВИЛЬНО\",\"ОШИБКА\")","v":"ПРАВИЛЬНО"},"подраздел 4.1 гр.3>= гр.8 по строке 02"]
[{"$f":"IF('10,11'!C9>='10,11'!C11,\"ПРАВИЛЬНО\",\"ОШИБКА\")","v":"ПРАВИЛЬНО"},"подраздел 4.1 ст.01>= стр.02 графы 3"]
[{"$f":"IF('10,11'!D9>='10,11'!D11,\"ПРАВИЛЬНО\",\"ОШИБКА\")","v":"ПРАВИЛЬНО"},"подраздел 4.1 ст.01>= стр.02 графы 4"]
[{"$f":"IF('10,11'!E9>='10,11'!E11,\"ПРАВИЛЬНО\",\"ОШИБКА\")","v":"ПРАВИЛЬНО"},"подраздел 4.1 ст.01>= стр.02 графы 5"]
[{"$f":"IF('10,11'!F9>='10,11'!F11,\"ПРАВИЛЬНО\",\"ОШИБКА\")","v":"ПРАВИЛЬНО"},"подраздел 4.1 ст.01>= стр.02 графы 6"]
[{"$f":"IF('10,11'!G9>='10,11'!G11,\"ПРАВИЛЬНО\",\"ОШИБКА\")","v":"ПРАВИЛЬНО"},"подраздел 4.1 ст.01>= стр.02 графы 7"]
[{"$f":"IF('10,11'!H9>='10,11'!H11,\"ПРАВИЛЬНО\",\"ОШИБКА\")","v":"ПРАВИЛЬНО"},"подраздел 4.1 ст.01>= стр.02 графы 8"]
[{"$f":"IF('10,11'!C11>='10,11'!C13,\"ПРАВИЛЬНО\",\"ОШИБКА\")","v":"ПРАВИЛЬНО"},"подраздел 4.1 стр.03 гр.3>=стр.03 гр. 03"]
[{"$f":"IF('10,11'!C11>='10,11'!C14,\"ПРАВИЛЬНО\",\"ОШИБКА\")","v":"ПРАВИЛЬНО"},"подраздел 4.1 стр.03 гр.3>=стр.04 гр. 03"]
[{"$f":"IF('10,11'!C11>=SUM('10,11'!C13:C14),\"ПРАВИЛЬНО\",\"ОШИБКА\")","v":"ПРАВИЛЬНО"},"подраздел 4.1 стр.03 гр.3>=сумме стр.03,04 гр. 03"]
[{"$f":"IF('10,11'!C15<='10,11'!C13,\"ПРАВИЛЬНО\",\"ОШИБКА\")","v":"ПРАВИЛЬНО"},"подраздел 4.1 стр.05 гр. =< стр.03 гр.3"]
[{"$f":"IF('12,13'!C13>='12,13'!C15,\"ПРАВИЛЬНО\",\"ОШИБКА\")","v":"ПРАВИЛЬНО"},"подраздел 4.2 стр.7>= стр.08"]
[{"$f":"IF('12,13'!C13>='12,13'!C16,\"ПРАВИЛЬНО\",\"ОШИБКА\")","v":"ПРАВИЛЬНО"},"подраздел 4.2 стр.7>= стр.09"]
[{"$f":"IF('1,2'!C7<1,\"ПРАВИЛЬНО\",IF(AND('1,2'!C7=1,'12,13'!C13>0),\"ПРАВИЛЬНО\",\"ОШИБКА\"))","v":"ОШИБКА"},"подраздел 4.2 строка 7 должна быть заполнена, если организация является дошкольной образовательной."]
[{"$f":"IF(AND('12,13'!C6=1,'12,13'!C15>0),\"ПРАВИЛЬНО\",IF(AND('12,13'!C6<1,'12,13'!C15<1),\"ПРАВИЛЬНО\",\"ОШИБКА\"))","v":"ПРАВИЛЬНО"},"подраздел 4.3 если в строке 01 проставлено \"1\", то строка 08>0"]
[{"$f":"IF(AND('12,13'!C7=1,'12,13'!C16>0),\"ПРАВИЛЬНО\",IF(AND('12,13'!C7<1,'12,13'!C16<1),\"ПРАВИЛЬНО\",\"ОШИБКА\"))","v":"ПРАВИЛЬНО"},"подраздел 4.3 если в строке 02 проставлено \"1\", то строка 09>0"]
[{"$f":"IF('12,13'!C23>='12,13'!C24,\"ПРАВИЛЬНО\",\"ОШИБКА\")","v":"ПРАВИЛЬНО"},"подраздел 4.4 строка 01>= строке 02"]
[{"$f":"IF('12,13'!C23>='12,13'!C25,\"ПРАВИЛЬНО\",\"ОШИБКА\")","v":"ПРАВИЛЬНО"},"подраздел 4.4 строка 01>= строке 03"]
[{"$f":"IF('12,13'!C28>='12,13'!C29,\"ПРАВИЛЬНО\",\"ОШИБКА\")","v":"ПРАВИЛЬНО"},"подраздел 4.4 строка 05>= строке 06"]
[{"$f":"IF(AND('1,2'!C7=1,'14,15'!C6=0),\"ПРАВИЛЬНО\",IF(AND('1,2'!C7=1,'14,15'!C6>0),\"ПРАВИЛЬНО\",IF(AND('1,2'!C7=0,'14,15'!C6=0),\"ПРАВИЛЬНО\",\"ОШИБКА\")))","v":"ОШИБКА"},"раздел 5 и справку заполняет только дошкольная образовательная организация, являющаяся самостоятельным юридическим лицом"]